fUST/lending_fUST_20250108
["ID","MTS","AMOUNT","RATE_DAILY","PERIOD"]
[348134879,1736350052172,-500.0,0.00019726,3]
[348134880,1736350052317,-500.0,0.00019726,3]
[348134881,1736350052342,-1233.92,0.00019726,3]
[348134882,1736350052366,-500.0,0.00019726,3]
[348134883,1736350052391,-4355.25,0.00019726,3]
[348134884,1736350052415,-500.0,0.00019726,3]
[348134885,1736350052437,-320.74414507,0.00019726,3]
[348134886,1736350052462,-2543.79,0.00019726,3]
[348134887,1736350052488,-706.33,0.00019726,3]
[348134888,1736350052511,-500.0,0.00019726,3]
[348134889,1736350052535,-500.0,0.00019726,3]
[348134890,1736350052557,-500.0,0.00019726,3]
[348134891,1736350052585,-500.0,0.00019726,3]
[348134892,1736350052608,-500.0,0.00019726,3]
[348134893,1736350052632,-789.89,0.00019726,3]
[348134894,1736350052656,-699.29,0.00019726,3]
[348134895,1736350052677,-500.0,0.00019726,3]
[348134896,1736350052701,-500.0,0.00019726,3]
[348134897,1736350052726,-917.21,0.00019726,3]
[348134898,1736350052751,-742.76,0.00019726,3]
[348134899,1736350052775,-500.0,0.00019726,3]
[348134900,1736350052799,-500.0,0.00019726,3]
[348134901,1736350052823,-500.0,0.00019726,3]
[348134902,1736350052846,-500.0,0.00019726,3]
[348134903,1736350052875,-500.0,0.00019726,3]
[348134904,1736350052898,-500.0,0.00019726,3]
[348134905,1736350052920,-500.0,0.00019726,3]
[348134906,1736350052946,-500.0,0.00019726,3]
[348134907,1736350052968,-500.0,0.00019726,3]
[348134908,1736350052997,-500.0,0.00019726,3]
[348134909,1736350053023,-500.0,0.00019726,3]
[348134910,1736350053049,-556.66,0.00019726,3]
[348134911,1736350053074,-151.0,0.00019726,2]
[348134912,1736350053100,-500.0,0.00019726,3]
[348134913,1736350053124,-500.0,0.00019726,3]
[348134914,1736350053149,-500.0,0.00019726,3]
[348134915,1736350053174,-151.0,0.00019726,2]
[348134916,1736350053200,-500.0,0.00019726,3]
[348134917,1736350053226,-500.0,0.00019726,3]
[348134918,1736350053253,-151.0,0.00019726,2]
[348134919,1736350053280,-500.0,0.00019726,3]
[348134920,1736350053304,-151.0,0.00019726,2]
[348134921,1736350053329,-1206.21,0.00019726,3]
[348134922,1736350053354,-500.0,0.00019726,3]
[348134923,1736350053383,-781.72,0.00019726,3]
[348134924,1736350053409,-500.0,0.00019726,3]
[348134925,1736350053437,-151.0,0.00019726,2]
[348134926,1736350053464,-648.78,0.00019726,3]
[348134927,1736350053494,-15624.14,0.00019726,3]
[348134928,1736350053523,-500.0,0.00019726,3]
[348134929,1736350053550,-151.0,0.000199,2]
[348134930,1736350053579,-5540.7252452,0.000199,2]
[348134931,1736350053604,-151.0,0.00019973,2]
[348134932,1736350053629,-151.0,0.00019973,2]
[348134933,1736350053654,-532.0,0.0001999,2]
[348134934,1736350053679,-160.0,0.0002,2]
[348134935,1736350053705,-169.3,0.0002,3]
[348134936,1736350053734,-3843.86,0.0002,3]
[348134937,1736350053759,-151.0,0.0002,2]
[348134938,1736350053782,-151.0,0.0002,2]
[348134939,1736350053808,-151.0,0.0002,2]
[348134940,1736350053833,-151.0,0.0002,2]
[348134941,1736350053860,-500.0,0.0002,3]
[348134942,1736350053886,-500.0,0.0002,3]
[348134943,1736350053913,-500.0,0.0002,3]
[348134944,1736350053938,-322.68848819,0.0002,3]
[348134945,1736350053963,-151.0,0.0002,2]
[348134946,1736350053988,-151.0,0.0002,2]
[348134947,1736350054022,-520.58,0.0002,3]
[348134948,1736350054046,-500.0,0.0002,3]
[348134949,1736350054070,-500.0,0.0002,3]
[348134950,1736350054095,-151.0,0.0002,2]
[348134951,1736350054120,-500.0,0.0002,3]
[348134952,1736350054145,-500.0,0.0002,3]
[348134953,1736350054169,-157.03621937,0.0002,3]
[348134954,1736350054193,-151.0,0.0002,2]
[348134955,1736350054218,-500.0,0.0002,3]
[348134956,1736350054247,-569.57,0.0002,3]
[348134957,1736350054271,-500.0,0.0002,3]
[348134958,1736350054298,-500.0,0.0002,3]
[348134959,1736350054322,-204.66588,0.0002,2]
[348134960,1736350054347,-204.66588,0.0002,2]
[348134961,1736350054371,-151.0,0.0002,2]
[348134962,1736350054396,-151.0,0.0002,2]
[348134963,1736350054421,-500.0,0.0002,3]
[348134964,1736350054444,-15023.0,0.0002,2]
[348134965,1736350054467,-1000.0,0.0002,3]
[348134966,1736350054495,-151.0,0.0002,2]
[348134967,1736350054519,-500.0,0.0002,3]
[348134968,1736350054543,-500.0,0.0002,3]
[348134969,1736350054569,-1371.55,0.0002,3]
[348134970,1736350054593,-500.0,0.0002,3]
[348134971,1736350054616,-500.0,0.0002,3]
[348134972,1736350054641,-500.0,0.0002,3]
[348134973,1736350054666,-697.93,0.0002,3]
[348134974,1736350054690,-500.0,0.0002,3]
[348134975,1736350054714,-500.0,0.0002,3]
[348134976,1736350054739,-1233.92,0.0002,3]
[348134977,1736350054764,-500.0,0.0002,3]
[348134978,1736350054791,-4355.25,0.0002,3]
[348134979,1736350054814,-409.01908973,0.0002,3]
[348134994,1736350146117,-300.0,0.00017337,2]
[348134995,1736350146139,-23458.38010656,0.00017338,2]
[348134997,1736350147099,-1383.82952677,0.00017338,2]
[348135108,1736350232703,-57.79036667,0.00017338,2]
[348135110,1736350232713,-498.79704736,0.00019078,2]
[348135112,1736350232722,-152.22774365,0.00019173,2]
[348135114,1736350232732,-300.0,0.00019177,2]
[348135116,1736350232742,-500.0,0.00019178,2]
[348135118,1736350232751,-500.0,0.00019178,2]
[348135119,1736350232761,-500.0,0.00019178,2]
[348135121,1736350232770,-335.26842123,0.00019178,2]
[348135123,1736350232779,-1028.27,0.00019178,2]
[348135125,1736350232789,-500.0,0.00019178,2]
[348135127,1736350232798,-500.0,0.00019178,2]
[348135129,1736350232807,-500.0,0.00019178,2]
[348135131,1736350232816,-500.0,0.00019178,2]
[348135133,1736350232825,-618.04,0.00019178,2]
[348135135,1736350232835,-500.0,0.00019178,2]
[348135137,1736350232844,-876.79,0.00019178,2]
[348135139,1736350232853,-500.0,0.00019178,2]
[348135141,1736350232863,-246.12157006,0.00019178,2]
[348135143,1736350232872,-691.16,0.00019178,2]
[348135145,1736350232881,-611.88,0.00019178,2]
[348135147,1736350232891,-500.78395808,0.00019178,2]
[348135148,1736350232902,-594.38222614,0.00019178,2]
[348135150,1736350232912,-500.0,0.00019178,2]
[348135152,1736350232921,-500.0,0.00019178,2]
[348135154,1736350232931,-500.0,0.00019178,2]
[348135156,1736350232941,-375.12895905,0.00019178,2]
[348135158,1736350232953,-124.87104095,0.00019178,2]
[348135160,1736350232962,-500.0,0.00019178,2]
[348135161,1736350232973,-500.0,0.00019178,2]
[348135162,1736350232982,-500.0,0.00019178,2]
[348135163,1736350232992,-649.91,0.00019178,2]
[348135165,1736350233001,-500.0,0.00019178,2]
[348135166,1736350233009,-500.0,0.00019178,2]
[348135168,1736350233019,-500.0,0.00019178,2]
[348135169,1736350233028,-1142.96,0.00019178,2]
[348135170,1736350233038,-500.0,0.00019178,2]
[348135171,1736350233048,-500.0,0.00019178,2]
[348135172,1736350233058,-500.0,0.00019178,2]
[348135173,1736350233069,-3306.69,0.00019178,2]
[348135174,1736350233078,-581.61,0.00019178,2]
[348135175,1736350233088,-500.0,0.00019178,2]
[348135176,1736350233098,-198.32935922,0.00019178,2]
[348135177,1736350233108,-500.0,0.00019178,2]
[348135178,1736350233118,-500.0,0.00019178,2]
[348135179,1736350233127,-500.0,0.00019178,2]
[348135180,1736350233138,-500.0,0.00019178,2]
[348135181,1736350233156,-774.561,0.0001926,2]
[348135182,1736350233167,-7885.00189982,0.00019352,2]
[348135183,1736350233183,-10286.87661945,0.00019352,2]
[348135184,1736350233196,-500.0,0.00019451,3]
[348135185,1736350233209,-500.0,0.00019451,3]
[348135186,1736350233219,-500.0,0.00019451,3]
[348135187,1736350233229,-500.0,0.00019451,3]
[348135188,1736350233240,-500.0,0.00019452,3]
[348135189,1736350233251,-500.0,0.00019452,3]
[348135190,1736350233261,-500.0,0.00019452,3]
[348135191,1736350233271,-1028.27,0.00019452,3]
[348135192,1736350233281,-500.0,0.00019452,3]
[348135193,1736350233291,-500.0,0.00019452,3]
[348135194,1736350233301,-500.0,0.00019452,3]
[348135195,1736350233310,-618.04,0.00019452,3]
[348135196,1736350233321,-500.0,0.00019452,3]
[348135197,1736350233332,-291.39549673,0.00019452,3]
[348135198,1736350233344,-585.39450327,0.00019452,3]
[348135199,1736350233354,-366.30549673,0.00019452,3]
[348135200,1736350233366,-324.85450327,0.00019452,3]
[348135201,1736350233376,-411.16549673,0.00019452,3]
[348135202,1736350233388,-200.71450327,0.00019452,3]
[348135203,1736350233398,-500.0,0.00019452,3]
[348135204,1736350233408,-500.0,0.00019452,3]
[348135205,1736350233418,-500.0,0.00019452,3]
[348135206,1736350233428,-649.91,0.00019452,3]
[348135207,1736350233438,-1142.96,0.00019452,3]
[348135208,1736350233448,-3306.69,0.00019452,3]
[348135209,1736350233457,-581.61,0.00019452,3]
[348135210,1736350233467,-500.0,0.00019452,3]
[348135211,1736350233477,-500.0,0.00019452,3]
[348135212,1736350233487,-500.0,0.00019452,3]
[348135213,1736350233496,-500.0,0.00019452,3]
[348135214,1736350233506,-353.0175454,0.000195,2]
[348135215,1736350233516,-272.1344299,0.000195,2]
[348135216,1736350233616,-498.7970473,0.00019649,2]
[348135217,1736350233626,-705.9196052,0.000197,2]
[348135218,1736350233635,-500.0,0.00019725,3]
[348135219,1736350233645,-481.89461693,0.00019725,3]
[348135220,1736350233654,-500.0,0.00019726,3]
[348135221,1736350233664,-500.0,0.00019726,3]
[348135222,1736350233675,-500.0,0.00019726,3]
[348135223,1736350233684,-1028.27,0.00019726,3]
[348135224,1736350233693,-500.0,0.00019726,3]
[348135225,1736350233703,-500.0,0.00019726,3]
[348135226,1736350233713,-500.0,0.00019726,3]
[348135227,1736350233723,-618.04,0.00019726,3]
[348135228,1736350233732,-500.0,0.00019726,3]
[348135229,1736350233742,-876.79,0.00019726,3]
[348135230,1736350233751,-691.16,0.00019726,3]
[348135231,1736350233761,-611.88,0.00019726,3]
[348135232,1736350233771,-266.64,0.00019726,3]
[348135233,1736350233780,-151.0,0.00019726,2]
[348135234,1736350233791,-500.0,0.00019726,3]
[348135235,1736350233801,-649.91,0.00019726,3]
[348135236,1736350233811,-1142.96,0.00019726,3]
[348135237,1736350233820,-3306.69,0.00019726,3]
[348135238,1736350233830,-581.61,0.00019726,3]
[348135239,1736350233840,-500.0,0.00019726,3]
[348135240,1736350233849,-500.0,0.00019726,3]
[348135241,1736350233860,-500.0,0.00019726,3]
[348135242,1736350233869,-500.0,0.00019726,3]
[348135243,1736350233879,-302.66710251,0.000199,2]
[348135244,1736350233889,-249.41855788,0.00019999,2]
[348135245,1736350233902,-217.86483116,0.00019999,2]
[348135246,1736350233912,-90.98091027,0.0002,3]
[348135247,1736350233921,-2543.79,0.0002,3]
[348135248,1736350233931,-500.0,0.0002,3]
[348135249,1736350233941,-500.0,0.0002,3]
[348135250,1736350233950,-500.0,0.0002,3]
[348135251,1736350233960,-500.0,0.0002,3]
[348135252,1736350233971,-151.0,0.0002,2]
[348135253,1736350233980,-917.21,0.0002,3]
[348135254,1736350233990,-500.0,0.0002,3]
[348135255,1736350233999,-500.0,0.0002,3]
[348135256,1736350234009,-151.0,0.0002,2]
[348135257,1736350234019,-151.0,0.0002,2]
[348135258,1736350234028,-500.0,0.0002,3]
[348135259,1736350234038,-500.0,0.0002,3]
[348135260,1736350234047,-500.0,0.0002,3]
[348135261,1736350234058,-500.0,0.0002,3]
[348135262,1736350234068,-557.64,0.0002,3]
[348135263,1736350234078,-500.0,0.0002,3]
[348135264,1736350234087,-500.0,0.0002,3]
[348135265,1736350234097,-151.0,0.0002,2]
[348135266,1736350234107,-500.0,0.0002,3]
[348135267,1736350234117,-596.47147037,0.0002,3]
[348135268,1736350234127,-500.0,0.0002,3]
[348135269,1736350234137,-1206.21,0.0002,3]
[348135270,1736350234147,-500.0,0.0002,3]
[348135271,1736350234157,-781.72,0.0002,3]
[348135272,1736350234167,-500.0,0.0002,3]
[348135273,1736350234176,-648.78,0.0002,3]
[348135274,1736350234186,-589.88948818,0.0002,3]
[348135325,1736350237912,-500.0,0.00019178,2]
[348135327,1736350237921,-500.0,0.00019452,3]
[348135329,1736350237931,-573.02359037,0.00019473,2]
[348135331,1736350237940,-500.0,0.00019726,3]
[348135333,1736350237950,-15034.25051182,0.0002,3]
[348135335,1736350237960,-500.0,0.0002,3]
[348135337,1736350237969,-500.0,0.0002,3]
[348135339,1736350237980,-500.0,0.0002,3]
[348135341,1736350237989,-500.0,0.0002,3]
[348135343,1736350237999,-1028.27,0.0002,3]
[348135345,1736350238008,-500.0,0.0002,3]
[348135346,1736350238017,-532.14484106,0.0002,3]
[348135348,1736350238025,-500.0,0.0002,3]
[348135350,1736350238035,-618.04,0.0002,3]
[348135352,1736350238045,-500.0,0.0002,3]
[348135354,1736350238055,-876.79,0.0002,3]
[348135356,1736350238065,-691.16,0.0002,3]
[348135358,1736350238074,-611.88,0.0002,3]
[348135360,1736350238084,-500.0,0.0002,3]
[348135362,1736350238093,-649.91,0.0002,3]
[348135364,1736350238103,-1142.96,0.0002,3]
[348135366,1736350238111,-3306.69,0.0002,3]
[348135369,1736350238121,-581.61,0.0002,3]
[348135372,1736350238130,-500.0,0.0002,3]
[348135375,1736350238140,-500.0,0.0002,3]
[348135380,1736350238155,-500.0,0.0002,3]
[348135383,1736350238164,-500.0,0.0002,3]
[348135385,1736350238174,-500.0,0.0002,3]
[348135387,1736350238183,-501.28433858,0.00020021,2]
[348135389,1736350238192,-5540.72524508,0.00020038,2]
[348135391,1736350238202,-186.9564952,0.0002007,2]
[348135392,1736350238211,-454.00065376,0.00020099,4]
[348135394,1736350238222,-5540.72524508,0.00020176,2]
[348135396,1736350238231,-638.492047,0.000202,2]
[348135398,1736350238241,-498.7970473,0.00020219,2]
[348135401,1736350238250,-222.74911425,0.00020272,2]
[348135403,1736350238259,-500.38183265,0.00020273,2]
[348135404,1736350238268,-151.0,0.00020273,2]
[348135406,1736350238278,-151.0,0.00020273,2]
[348135409,1736350238288,-500.0,0.00020273,3]
[348135410,1736350238298,-159.168991,0.00020273,2]
[348135412,1736350238307,-151.0,0.00020273,2]
[348135415,1736350238316,-151.0,0.00020273,2]
[348135416,1736350238326,-516.08,0.00020273,3]
[348135418,1736350238335,-500.0,0.00020273,3]
[348135421,1736350238344,-500.0,0.00020273,3]
[348135423,1736350238354,-500.0,0.00020273,3]
[348135425,1736350238364,-151.0,0.00020273,2]
[348135426,1736350238373,-500.0,0.00020273,3]
[348135429,1736350238384,-4355.25,0.00020273,3]
[348135431,1736350238395,-500.0,0.00020273,3]
[348135433,1736350238407,-2543.79,0.00020273,3]
[348135435,1736350238417,-500.0,0.00020273,3]
[348135437,1736350238426,-500.0,0.00020273,3]
[348135439,1736350238436,-500.0,0.00020273,3]
[348135441,1736350238445,-917.21,0.00020273,3]
[348135443,1736350238455,-500.0,0.00020273,3]
[348135445,1736350238464,-500.0,0.00020273,3]
[348135447,1736350238474,-500.0,0.00020273,3]
[348135449,1736350238483,-500.0,0.00020273,3]
[348135451,1736350238493,-500.0,0.00020273,3]
[348135453,1736350238503,-500.0,0.00020273,3]
[348135455,1736350238512,-165.343636,0.00020273,2]
[348135457,1736350238522,-206.14495501,0.00020273,3]
[348135459,1736350238531,-151.0,0.00020273,2]
[348135461,1736350238541,-151.0,0.00020273,2]
[348135463,1736350238550,-500.0,0.00020273,3]
[348135465,1736350238560,-152.999976,0.00020273,2]
[348135467,1736350238569,-1206.21,0.00020273,3]
[348135469,1736350238579,-500.0,0.00020273,3]
[348135471,1736350238589,-781.72,0.00020273,3]
[348135473,1736350238599,-500.0,0.00020273,3]
[348135475,1736350238608,-648.78,0.00020273,3]
[348135477,1736350238617,-15624.14,0.00020273,3]
[348135479,1736350238627,-500.0,0.00020273,3]
[348135481,1736350238636,-500.0,0.00020273,3]
[348135490,1736350238722,-500.0,0.00020273,3]
[348135493,1736350238731,-500.0,0.00020273,3]
[348135495,1736350238740,-1028.27,0.00020273,3]
[348135497,1736350238749,-500.0,0.00020273,3]
[348135499,1736350238759,-500.0,0.00020273,3]
[348135501,1736350238768,-618.04,0.00020273,3]
[348135503,1736350238778,-500.0,0.00020273,3]
[348135505,1736350238787,-876.79,0.00020273,3]
[348135507,1736350238796,-691.16,0.00020273,3]
[348135509,1736350238805,-611.88,0.00020273,3]
[348135510,1736350238814,-500.0,0.00020273,3]
[348135512,1736350238823,-649.91,0.00020273,3]
[348135514,1736350238832,-1142.96,0.00020273,3]
[348135516,1736350238842,-3306.69,0.00020273,3]
[348135518,1736350238851,-581.61,0.00020273,3]
[348135520,1736350238861,-500.0,0.00020273,3]
[348135522,1736350238870,-500.0,0.00020273,3]
[348135524,1736350238880,-500.0,0.00020273,3]
[348135526,1736350238889,-500.0,0.00020273,3]
[348135528,1736350238905,-330.32564646,0.00020298,4]
[348135531,1736350238915,-14316.47,0.000203,2]
[348135532,1736350238924,-10372.64,0.000203,2]
[348135534,1736350238934,-502.05403478,0.00020311,2]
[348135536,1736350238945,-5540.72524508,0.00020314,2]
[348135539,1736350238954,-205.4,0.00020336,5]
[348135540,1736350238963,-5540.72524508,0.00020452,2]
[348135542,1736350238972,-150.0,0.00020472,2]
[348135544,1736350238983,-535.0,0.00020472,2]
[348135546,1736350238992,-2079.0,0.00020472,2]
[348135548,1736350239002,-2318.0,0.00020472,2]
[348135550,1736350239011,-394.0,0.00020472,2]
[348135552,1736350239021,-500.43542853,0.00020479,2]
[348135554,1736350239030,-500.90628145,0.00020479,2]
[348135556,1736350239039,-533.31627251,0.00020479,2]
[348135558,1736350239049,-1500.0,0.000205,2]
[348135560,1736350239060,-1500.0,0.000205,2]
[348135562,1736350239070,-314.451547,0.00020521,2]
[348135564,1736350239080,-151.0,0.00020547,2]
[348135566,1736350239090,-151.0,0.00020547,2]
[348135568,1736350239100,-151.0,0.00020547,2]
[348135570,1736350239110,-151.0,0.00020547,2]
[348135572,1736350239120,-208.921665,0.00020547,2]
[348135574,1736350239129,-151.0,0.00020547,2]
[348135576,1736350239139,-241.934026,0.00020547,2]
[348135578,1736350239150,-241.934026,0.00020547,2]
[348135580,1736350239159,-384.1,0.00020547,3]
[348135582,1736350239168,-151.0,0.00020547,2]
[348135584,1736350239177,-204.66588,0.00020547,2]
[348135586,1736350239187,-267.071855,0.00020547,2]
[348135588,1736350239197,-151.0,0.00020547,2]
[348135590,1736350239207,-500.0,0.00020547,3]
[348135592,1736350239216,-500.0,0.00020547,3]
[348135594,1736350239226,-500.0,0.00020547,3]
[348135596,1736350239236,-500.0,0.00020547,3]
[348135598,1736350239246,-4355.25,0.00020547,3]
[348135600,1736350239255,-500.0,0.00020547,3]
[348135602,1736350239265,-2543.79,0.00020547,3]
[348135604,1736350239275,-500.0,0.00020547,3]
[348135606,1736350239285,-154.11,0.00020547,3]
[348135608,1736350239296,-180.3,0.00020547,3]
[348135610,1736350239305,-917.21,0.00020547,3]
[348135612,1736350239315,-500.0,0.00020547,3]
[348135614,1736350239325,-500.0,0.00020547,3]
[348135617,1736350239335,-500.0,0.00020547,3]
[348135619,1736350239346,-500.0,0.00020547,3]
[348135621,1736350239356,-1007.34056257,0.00020547,2]
[348135623,1736350239367,-500.0,0.00020547,3]
[348135625,1736350239377,-151.0,0.00020547,2]
[348135627,1736350239387,-500.0,0.00020547,3]
[348135629,1736350239400,-150.17,0.00020547,2]
[348135631,1736350239410,-1206.21,0.00020547,3]
[348135632,1736350239419,-500.0,0.00020547,3]
[348135634,1736350239432,-781.72,0.00020547,3]
[348135636,1736350239443,-500.0,0.00020547,3]
[348135638,1736350239453,-150.17,0.00020547,2]
[348135640,1736350239462,-648.78,0.00020547,3]
[348135642,1736350239471,-150.17,0.00020547,2]
[348135644,1736350239481,-151.10029463,0.00020547,2]
[348135646,1736350239490,-153.39962852,0.00020547,2]
[348135649,1736350239500,-15624.14,0.00020547,3]
[348135652,1736350239510,-500.0,0.00020547,3]
[348135654,1736350239522,-500.0,0.00020547,3]
[348135656,1736350239532,-500.0,0.00020547,3]
[348135658,1736350239542,-500.0,0.00020547,3]
[348135660,1736350239551,-151.0,0.00020547,2]
[348135662,1736350239561,-1028.27,0.00020547,3]
[348135663,1736350239571,-500.0,0.00020547,3]
[348135665,1736350239580,-500.0,0.00020547,3]
[348135667,1736350239589,-618.04,0.00020547,3]
[348135669,1736350239599,-500.0,0.00020547,3]
[348135671,1736350239609,-876.79,0.00020547,3]
[348135673,1736350239618,-691.16,0.00020547,3]
[348135675,1736350239627,-611.88,0.00020547,3]
[348135677,1736350239637,-500.0,0.00020547,2]
[348135679,1736350239648,-500.0,0.00020547,3]
[348135681,1736350239658,-649.91,0.00020547,3]
[348135683,1736350239668,-1142.96,0.00020547,3]
[348135685,1736350239679,-3306.69,0.00020547,3]
[348135687,1736350239689,-581.61,0.00020547,3]
[348135689,1736350239699,-500.0,0.00020547,3]
[348135691,1736350239708,-500.0,0.00020547,3]
[348135693,1736350239718,-500.0,0.00020547,3]
[348135695,1736350239728,-500.0,0.00020547,3]
[348135697,1736350239738,-151.0,0.00020547,2]
[348135698,1736350239747,-150.17,0.00020547,2]
[348135701,1736350239757,-150.17,0.00020547,2]
[348135702,1736350239766,-150.292,0.00020559,2]
[348135705,1736350239776,-378.6772713,0.00020573,2]
[348135706,1736350239786,-163.61203264,0.00020573,2]
[348135709,1736350239797,-150.0,0.00020586,2]
[348135711,1736350239806,-251.931,0.00020586,2]
[348135713,1736350239816,-3165.13701557,0.0002059,2]
[348135715,1736350239830,-2375.58822951,0.0002059,2]
[348135717,1736350239839,-151.0,0.0002059,2]
[348135719,1736350239849,-152.175992,0.0002059,2]
[348135721,1736350239858,-1005.71878275,0.000206,2]
[348135723,1736350239870,-494.28121725,0.000206,2]
[348135725,1736350239880,-15.48378275,0.000206,2]
[348135727,1736350239895,-933.31694267,0.000206,2]
[348135730,1736350239911,-551.19927458,0.000206,2]
[348135732,1736350239921,-1500.0,0.000206,2]
[348135734,1736350239931,-1500.0,0.000206,2]
[348135736,1736350239942,-1500.0,0.000206,2]
[348135738,1736350239951,-1500.0,0.000206,2]
[348135740,1736350239961,-205.4,0.0002061,5]
[348135742,1736350239972,-151.22457005,0.00020641,2]
[348135744,1736350239984,-314.451547,0.00020712,2]
[348135746,1736350239994,-4999.17169994,0.00020728,2]
[348135748,1736350240006,-541.55354514,0.00020728,2]
[348135750,1736350240016,-498.7970473,0.0002079,2]
[348135752,1736350240025,-150.17,0.00020821,2]
[348135754,1736350240035,-150.17,0.00020821,2]
[348135756,1736350240044,-500.0,0.00020821,2]
[348135758,1736350240055,-150.17,0.00020821,2]
[348135760,1736350240065,-150.17,0.00020821,2]
[348135762,1736350240075,-151.0,0.00020821,2]
[348135764,1736350240084,-151.0,0.00020821,2]
[348135766,1736350240094,-157.969251,0.00020821,2]
[348135768,1736350240103,-151.0,0.00020821,2]
[348135770,1736350240112,-151.0,0.00020821,2]
[348135772,1736350240122,-151.0,0.00020821,2]
[348135774,1736350240131,-151.0,0.00020821,2]
[348135776,1736350240140,-151.0,0.00020821,2]
[348135778,1736350240153,-204.66588,0.00020821,2]
[348135780,1736350240163,-151.0,0.00020821,2]
[348135782,1736350240172,-500.0,0.00020821,3]
[348135784,1736350240182,-500.0,0.00020821,3]
[348135786,1736350240191,-500.0,0.00020821,3]
[348135788,1736350240200,-4355.25,0.00020821,3]
[348135790,1736350240211,-500.0,0.00020821,3]
[348135792,1736350240220,-2543.79,0.00020821,3]
[348135797,1736350240298,-500.0,0.00020821,3]
[348135798,1736350240309,-917.21,0.00020821,3]
[348135799,1736350240318,-286.86,0.00020821,3]
[348135800,1736350240328,-500.0,0.00020821,3]
[348135801,1736350240337,-500.0,0.00020821,3]
[348135802,1736350240347,-500.0,0.00020821,3]
[348135803,1736350240356,-500.0,0.00020821,3]
[348135804,1736350240366,-1206.21,0.00020821,3]
[348135805,1736350240376,-500.0,0.00020821,3]
[348135806,1736350240386,-598.05664162,0.00020821,3]
[348135807,1736350240463,-183.66335838,0.00020821,3]
[348135809,1736350240473,-500.0,0.00020821,3]
[348135811,1736350240484,-648.78,0.00020821,3]
[348135812,1736350240493,-1836.85701848,0.00020821,3]
[348135815,1736350240506,-3737.94368336,0.00020821,3]
[348135817,1736350240518,-1450.22578829,0.00020821,3]
[348135819,1736350240530,-8599.11350987,0.00020821,3]
[348135821,1736350240539,-500.0,0.00020821,3]
[348135823,1736350240549,-500.0,0.00020821,3]
[348135825,1736350240559,-500.0,0.00020821,3]
[348135827,1736350240568,-500.0,0.00020821,3]
[348135829,1736350240577,-1028.27,0.00020821,3]
[348135831,1736350240587,-500.0,0.00020821,3]
[348135833,1736350240596,-570.22183309,0.00020821,3]
[348135835,1736350240606,-618.04,0.00020821,3]
[348135837,1736350240615,-500.0,0.00020821,3]
[348135839,1736350240625,-876.79,0.00020821,3]
[348135841,1736350240635,-691.16,0.00020821,3]
[348135843,1736350240644,-611.88,0.00020821,3]